[Event "Early-Titled-Tuesday-Blitz-September-05-2023"]
[Site "Chess.com"]
[Date "2023.09.05"]
[Round "1"]
[White "Irina_Mikhaylova"]
[Black "Vsevolod_Ovchinnikov"]
[Result "1/2-1/2"]
[WhiteElo "2308"]
[BlackElo "2614"]
[TimeControl "180+1"]
[EndTime "8:07:16 PDT"]
[Termination "Game drawn by repetition"]

1. d4 {[%clk 0:02:59.7]} 1... Nf6 {[%clk 0:03:00.1]} 2. Nf3 {[%clk 0:02:59.6]}
2... g6 {[%clk 0:02:59.7]} 3. c4 {[%clk 0:03:00.1]} 3... Bg7 {[%clk 0:02:59.6]}
4. Nc3 {[%clk 0:03:00.5]} 4... d5 {[%clk 0:03:00.4]} 5. cxd5 {[%clk 0:03:00.4]}
5... Nxd5 {[%clk 0:03:01.3]} 6. Na4 {[%clk 0:03:00.8]} 6... Nb6 {[%clk
0:03:01.2]} 7. e4 {[%clk 0:02:59.8]} 7... O-O {[%clk 0:03:00.8]} 8. Be3 {[%clk
0:03:00.1]} 8... Bg4 {[%clk 0:02:50.8]} 9. Be2 {[%clk 0:02:59.4]} 9... Nc6
{[%clk 0:02:49.5]} 10. d5 {[%clk 0:02:59.8]} 10... Bxf3 {[%clk 0:02:44.4]} 11.
Bxf3 {[%clk 0:02:59.5]} 11... Ne5 {[%clk 0:02:44.5]} 12. Nxb6 {[%clk 0:02:59.2]}
12... Nxf3+ {[%clk 0:02:35.7]} 13. Qxf3 {[%clk 0:02:58.9]} 13... axb6 {[%clk
0:02:36.4]} 14. Qe2 {[%clk 0:02:58.8]} 14... c6 {[%clk 0:02:36.3]} 15. dxc6
{[%clk 0:02:57.2]} 15... bxc6 {[%clk 0:02:37.2]} 16. O-O {[%clk 0:02:57.5]}
16... Qc7 {[%clk 0:02:32.4]} 17. a3 {[%clk 0:02:51.5]} 17... Rfd8 {[%clk
0:02:29.7]} 18. Rab1 {[%clk 0:02:33.4]} 18... c5 {[%clk 0:01:57.9]} 19. f3
{[%clk 0:02:28.3]} 19... Be5 {[%clk 0:01:46.4]} 20. g3 {[%clk 0:02:23.3]} 20...
Rd7 {[%clk 0:01:43.4]} 21. f4 {[%clk 0:02:04.3]} 21... Bd4 {[%clk 0:01:42.9]}
22. Rfd1 {[%clk 0:01:58.3]} 22... Rad8 {[%clk 0:01:42.3]} 23. Bxd4 {[%clk
0:01:57.5]} 23... Rxd4 {[%clk 0:01:43.2]} 24. Rxd4 {[%clk 0:01:56.8]} 24... Rxd4
{[%clk 0:01:44.1]} 25. Rd1 {[%clk 0:01:51.3]} 25... Qd6 {[%clk 0:01:44]} 26.
Rxd4 {[%clk 0:01:51.4]} 26... Qxd4+ {[%clk 0:01:44.9]} 27. Kg2 {[%clk
0:01:51.7]} 27... e5 {[%clk 0:01:38]} 28. Kf3 {[%clk 0:01:39.1]} 28... Kg7
{[%clk 0:01:24.3]} 29. Qc2 {[%clk 0:00:56.4]} 29... f6 {[%clk 0:01:03.3]} 30.
fxe5 {[%clk 0:00:51.3]} 30... Qxe5 {[%clk 0:00:59.4]} 31. Qc3 {[%clk 0:00:47.9]}
31... Qxc3+ {[%clk 0:00:28.3]} 32. bxc3 {[%clk 0:00:47.7]} 32... Kf7 {[%clk
0:00:29.2]} 33. c4 {[%clk 0:00:42.5]} 33... Ke6 {[%clk 0:00:29.4]} 34. Kf4
{[%clk 0:00:37.4]} 34... g5+ {[%clk 0:00:27.1]} 35. Ke3 {[%clk 0:00:37.6]} 35...
Ke5 {[%clk 0:00:19.9]} 36. g4 {[%clk 0:00:33.8]} 36... Kd6 {[%clk 0:00:19.8]}
37. Ke2 {[%clk 0:00:29.9]} 37... Ke5 {[%clk 0:00:16.1]} 38. Ke3 {[%clk 0:00:30]}
38... h6 {[%clk 0:00:16.5]} 39. h3 {[%clk 0:00:29.4]} 39... Ke6 {[%clk
0:00:17.1]} 40. Ke2 {[%clk 0:00:29]} 40... Kd6 {[%clk 0:00:17.6]} 41. Kd3 {[%clk
0:00:26]} 41... Ke5 {[%clk 0:00:17]} 42. Ke3 {[%clk 0:00:25.8]} 42... Kd6 {[%clk
0:00:17.7]} 43. Kd3 {[%clk 0:00:25.2]} 43... Ke5 {[%clk 0:00:18.1]} 44. Ke3
{[%clk 0:00:25.3]} 1/2-1/2

[Event "Early-Titled-Tuesday-Blitz-September-05-2023"]
[Site "Chess.com"]
[Date "2023.09.05"]
[Round "1"]
[White "Roedor"]
[Black "nrvisakh"]
[Result "0-1"]
[WhiteElo "2454"]
[BlackElo "2822"]
[TimeControl "180+1"]
[EndTime "8:07:17 PDT"]
[Termination "nrvisakh won on time"]

1. d4 {[%clk 0:02:59.5]} 1... Nf6 {[%clk 0:02:59.8]} 2. c4 {[%clk 0:02:53.2]}
2... e6 {[%clk 0:02:57]} 3. g3 {[%clk 0:02:53.3]} 3... d5 {[%clk 0:02:49.3]} 4.
Bg2 {[%clk 0:02:53.3]} 4... Bb4+ {[%clk 0:02:49.1]} 5. Bd2 {[%clk 0:02:51.3]}
5... Bd6 {[%clk 0:02:48.2]} 6. Nf3 {[%clk 0:02:51.1]} 6... Nbd7 {[%clk
0:02:44.8]} 7. O-O {[%clk 0:02:50.4]} 7... c6 {[%clk 0:02:44.6]} 8. Qc2 {[%clk
0:02:47.2]} 8... O-O {[%clk 0:02:40.8]} 9. Bg5 {[%clk 0:02:45.8]} 9... h6 {[%clk
0:02:40.6]} 10. Bxf6 {[%clk 0:02:45.7]} 10... Nxf6 {[%clk 0:02:41.5]} 11. Rd1
{[%clk 0:02:45.4]} 11... b6 {[%clk 0:02:40.8]} 12. Nc3 {[%clk 0:02:38.2]} 12...
Bb7 {[%clk 0:02:37.5]} 13. e4 {[%clk 0:02:36.4]} 13... Be7 {[%clk 0:02:31.5]}
14. e5 {[%clk 0:02:29.1]} 14... Nd7 {[%clk 0:02:30.7]} 15. cxd5 {[%clk
0:02:29.2]} 15... cxd5 {[%clk 0:02:30.4]} 16. Bf1 {[%clk 0:02:23.4]} 16... Nb8
{[%clk 0:02:29.5]} 17. a4 {[%clk 0:02:12.6]} 17... Nc6 {[%clk 0:02:29.3]} 18.
Rac1 {[%clk 0:02:08.3]} 18... Rc8 {[%clk 0:02:28.3]} 19. Qd2 {[%clk 0:02:06.9]}
19... Na5 {[%clk 0:02:22.6]} 20. Bd3 {[%clk 0:02:02.8]} 20... Nb3 {[%clk
0:02:20.5]} 21. Qe2 {[%clk 0:02:02.4]} 21... Nxc1 {[%clk 0:02:20.2]} 22. Rxc1
{[%clk 0:02:03.3]} 22... Qd7 {[%clk 0:02:11.1]} 23. h4 {[%clk 0:02:01.8]} 23...
Bc6 {[%clk 0:01:59.1]} 24. Bb1 {[%clk 0:01:56.2]} 24... h5 {[%clk 0:01:17.2]}
25. Nh2 {[%clk 0:01:12.5]} 25... g6 {[%clk 0:01:16.7]} 26. g4 {[%clk 0:01:12.8]}
26... hxg4 {[%clk 0:00:58.9]} 27. Qxg4 {[%clk 0:01:09.1]} 27... Kg7 {[%clk
0:00:59.3]} 28. h5 {[%clk 0:01:04.8]} 28... Rh8 {[%clk 0:00:59.3]} 29. hxg6
{[%clk 0:01:03.3]} 29... f5 {[%clk 0:00:59.4]} 30. exf6+ {[%clk 0:00:57.5]}
30... Bxf6 {[%clk 0:00:59.7]} 31. Nf3 {[%clk 0:00:46.1]} 31... Rh6 {[%clk
0:00:59.7]} 32. Re1 {[%clk 0:00:42.6]} 32... Re8 {[%clk 0:00:51.2]} 33. Ng5
{[%clk 0:00:21]} 33... Bxg5 {[%clk 0:00:44.3]} 34. Qxg5 {[%clk 0:00:21.9]} 34...
Qe7 {[%clk 0:00:44.6]} 35. Qg3 {[%clk 0:00:18.1]} 35... Qf6 {[%clk 0:00:40]} 36.
Re5 {[%clk 0:00:16.7]} 36... Re7 {[%clk 0:00:37.2]} 37. Bd3 {[%clk 0:00:12.7]}
37... Re8 {[%clk 0:00:36.9]} 38. Kg2 {[%clk 0:00:13.1]} 38... Reh8 {[%clk
0:00:36.8]} 39. Be2 {[%clk 0:00:05.9]} 39... Rh2+ {[%clk 0:00:36.3]} 40. Kg1
{[%clk 0:00:01.6]} 40... Rh1+ {[%clk 0:00:36.2]} 41. Kg2 {[%clk 0:00:02.1]}
41... R8h2+ {[%clk 0:00:36.8]} 0-1

[Event "Early-Titled-Tuesday-Blitz-September-05-2023"]
[Site "Chess.com"]
[Date "2023.09.05"]
[Round "1"]
[White "The_Princess_Moon"]
[Black "onnoelgersma"]
[Result "1/2-1/2"]
[WhiteElo "2254"]
[BlackElo "2591"]
[TimeControl "180+1"]
[EndTime "8:07:19 PDT"]
[Termination "Game drawn by repetition"]

1. e3 {[%clk 0:02:59.1]} 1... Nf6 {[%clk 0:02:59.1]} 2. d4 {[%clk 0:02:59]} 2...
g6 {[%clk 0:02:59.3]} 3. c4 {[%clk 0:02:58.9]} 3... Bg7 {[%clk 0:02:59.9]} 4.
Nc3 {[%clk 0:02:59.8]} 4... O-O {[%clk 0:03:00]} 5. Nf3 {[%clk 0:02:58.8]} 5...
c5 {[%clk 0:03:00]} 6. Be2 {[%clk 0:02:58.8]} 6... cxd4 {[%clk 0:02:59.3]} 7.
exd4 {[%clk 0:02:59.7]} 7... d5 {[%clk 0:02:59.5]} 8. O-O {[%clk 0:02:56]} 8...
Nc6 {[%clk 0:02:58.8]} 9. Bg5 {[%clk 0:02:54.2]} 9... Ne4 {[%clk 0:02:55.4]} 10.
cxd5 {[%clk 0:02:43.5]} 10... Nxg5 {[%clk 0:02:36.8]} 11. dxc6 {[%clk
0:02:40.3]} 11... Nxf3+ {[%clk 0:02:37.4]} 12. Bxf3 {[%clk 0:02:39.7]} 12...
bxc6 {[%clk 0:02:38]} 13. Bxc6 {[%clk 0:02:38.7]} 13... Rb8 {[%clk 0:02:38.6]}
14. Qe2 {[%clk 0:02:27.7]} 14... Qxd4 {[%clk 0:02:28.4]} 15. Rfd1 {[%clk
0:02:18.5]} 15... Qb6 {[%clk 0:02:27.2]} 16. Nd5 {[%clk 0:02:01.3]} 16... Qxb2
{[%clk 0:02:16.6]} 17. Nxe7+ {[%clk 0:01:58.6]} 17... Kh8 {[%clk 0:02:17.2]} 18.
Qf3 {[%clk 0:01:46.8]} 18... Qxa1 {[%clk 0:01:58.8]} 19. Rxa1 {[%clk 0:01:45.9]}
19... Bxa1 {[%clk 0:01:59.7]} 20. h4 {[%clk 0:01:42.6]} 20... Be5 {[%clk
0:01:51.9]} 21. g3 {[%clk 0:01:36.6]} 21... Be6 {[%clk 0:01:51.2]} 22. Bd5
{[%clk 0:01:18.9]} 22... Bxd5 {[%clk 0:01:37.7]} 23. Nxd5 {[%clk 0:01:19.8]}
23... Bg7 {[%clk 0:01:31.3]} 24. h5 {[%clk 0:01:17.9]} 24... Rbe8 {[%clk
0:01:06.1]} 25. Nf6 {[%clk 0:01:09.6]} 25... Re6 {[%clk 0:00:43]} 26. Ng4 {[%clk
0:01:02.7]} 26... gxh5 {[%clk 0:00:41.2]} 27. Ne3 {[%clk 0:01:02]} 27... h4
{[%clk 0:00:41.3]} 28. gxh4 {[%clk 0:01:01.4]} 28... Rg6+ {[%clk 0:00:41.7]} 29.
Kf1 {[%clk 0:01:00.5]} 29... Kg8 {[%clk 0:00:37.6]} 30. Nf5 {[%clk 0:00:55.6]}
30... Re8 {[%clk 0:00:33.1]} 31. Nxg7 {[%clk 0:00:44.4]} 31... Rxg7 {[%clk
0:00:26]} 32. Qf4 {[%clk 0:00:37.6]} 32... Rf8 {[%clk 0:00:23.6]} 33. Qf5 {[%clk
0:00:36.3]} 33... f6 {[%clk 0:00:23.6]} 34. h5 {[%clk 0:00:35.1]} 34... Rg5
{[%clk 0:00:20.5]} 35. Qe6+ {[%clk 0:00:32.8]} 35... Kg7 {[%clk 0:00:19.4]} 36.
Qd7+ {[%clk 0:00:31.1]} 36... Rf7 {[%clk 0:00:19.2]} 37. h6+ {[%clk 0:00:31.4]}
37... Kg6 {[%clk 0:00:19.8]} 38. Qd3+ {[%clk 0:00:28.4]} 38... Kxh6 {[%clk
0:00:19.6]} 39. f4 {[%clk 0:00:27.1]} 39... Ra5 {[%clk 0:00:14.8]} 40. Qh3+
{[%clk 0:00:24.7]} 40... Kg7 {[%clk 0:00:14.9]} 41. Qg4+ {[%clk 0:00:24.5]}
41... Kf8 {[%clk 0:00:15]} 42. Qc8+ {[%clk 0:00:24.3]} 42... Kg7 {[%clk
0:00:14.6]} 43. Qg4+ {[%clk 0:00:24.3]} 43... Kh8 {[%clk 0:00:11.3]} 44. Qc8+
{[%clk 0:00:23.3]} 44... Kg7 {[%clk 0:00:10.2]} 45. Qg4+ {[%clk 0:00:21.8]}
1/2-1/2

[Event "Early-Titled-Tuesday-Blitz-September-05-2023"]
[Site "Chess.com"]
[Date "2023.09.05"]
[Round "1"]
[White "Aygehovit1992"]
[Black "Srisshhhtea"]
[Result "1/2-1/2"]
[WhiteElo "2699"]
[BlackElo "2411"]
[TimeControl "180+1"]
[EndTime "8:07:20 PDT"]
[Termination "Game drawn by repetition"]

1. e4 {[%clk 0:02:57.9]} 1... e5 {[%clk 0:02:58.5]} 2. Nf3 {[%clk 0:02:57.9]}
2... Nc6 {[%clk 0:02:56.7]} 3. Bb5 {[%clk 0:02:58.1]} 3... a6 {[%clk 0:02:53.6]}
4. Ba4 {[%clk 0:02:57.9]} 4... d6 {[%clk 0:02:53.3]} 5. Nc3 {[%clk 0:02:57.1]}
5... Bg4 {[%clk 0:02:39.7]} 6. h3 {[%clk 0:02:53.6]} 6... Bxf3 {[%clk
0:02:39.3]} 7. Bxc6+ {[%clk 0:02:53.3]} 7... bxc6 {[%clk 0:02:39.1]} 8. Qxf3
{[%clk 0:02:54]} 8... Nf6 {[%clk 0:02:37.5]} 9. O-O {[%clk 0:02:40.5]} 9... Be7
{[%clk 0:02:37.5]} 10. Rd1 {[%clk 0:02:39.1]} 10... O-O {[%clk 0:02:35.8]} 11.
d4 {[%clk 0:02:39.3]} 11... exd4 {[%clk 0:02:34.6]} 12. Rxd4 {[%clk 0:02:40.2]}
12... Nd7 {[%clk 0:02:34.8]} 13. Bf4 {[%clk 0:02:39.3]} 13... Bf6 {[%clk
0:02:34]} 14. Rd3 {[%clk 0:02:25.2]} 14... Ne5 {[%clk 0:02:31.4]} 15. Bxe5
{[%clk 0:02:25.1]} 15... Bxe5 {[%clk 0:02:32.3]} 16. Nd1 {[%clk 0:02:25.1]}
16... Rb8 {[%clk 0:02:30.7]} 17. Rb1 {[%clk 0:02:24.9]} 17... Qc8 {[%clk
0:02:25.8]} 18. b3 {[%clk 0:02:22.6]} 18... c5 {[%clk 0:02:09.3]} 19. Ne3 {[%clk
0:02:17.7]} 19... Bd4 {[%clk 0:02:09]} 20. Nf5 {[%clk 0:02:11.8]} 20... Bf6
{[%clk 0:02:02.3]} 21. Rbd1 {[%clk 0:02:00]} 21... Qe6 {[%clk 0:02:01.4]} 22. c4
{[%clk 0:01:55.3]} 22... Rfe8 {[%clk 0:02:00.9]} 23. Re3 {[%clk 0:01:48.8]}
23... g6 {[%clk 0:01:59.3]} 24. Nh6+ {[%clk 0:01:47.6]} 24... Kg7 {[%clk
0:01:59.4]} 25. Ng4 {[%clk 0:01:44]} 25... Bd4 {[%clk 0:01:59.4]} 26. Ree1
{[%clk 0:01:21.6]} 26... f5 {[%clk 0:01:41.2]} 27. exf5 {[%clk 0:01:19.1]} 27...
Qxe1+ {[%clk 0:01:42.1]} 28. Rxe1 {[%clk 0:01:19.3]} 28... Rxe1+ {[%clk
0:01:43]} 29. Kh2 {[%clk 0:01:20.1]} 29... Rf8 {[%clk 0:01:43.1]} 30. Qc6 {[%clk
0:01:12.2]} 30... gxf5 {[%clk 0:01:37]} 31. Ne3 {[%clk 0:00:51.6]} 31... Be5+
{[%clk 0:01:32.8]} 32. g3 {[%clk 0:00:51.7]} 32... f4 {[%clk 0:01:33]} 33. gxf4
{[%clk 0:00:35.4]} 33... Rxf4 {[%clk 0:01:29.4]} 34. Kg2 {[%clk 0:00:34.5]}
34... Re2 {[%clk 0:01:22.2]} 35. Ng4 {[%clk 0:00:32.2]} 35... Bd4 {[%clk
0:01:17.8]} 36. Qxc7+ {[%clk 0:00:30.6]} 36... Rf7 {[%clk 0:01:16.7]} 37. Qxd6
{[%clk 0:00:30.9]} 37... Bxf2 {[%clk 0:01:04]} 38. Qh6+ {[%clk 0:00:28.9]} 38...
Kh8 {[%clk 0:01:00.5]} 39. Nxf2 {[%clk 0:00:12.5]} 39... Rfxf2+ {[%clk
0:00:39.8]} 40. Kg3 {[%clk 0:00:12.1]} 40... Rg2+ {[%clk 0:00:37.9]} 41. Kf3
{[%clk 0:00:12.6]} 41... Rgf2+ {[%clk 0:00:37.8]} 42. Kg4 {[%clk 0:00:13.2]}
42... Rg2+ {[%clk 0:00:36.5]} 43. Kf5 {[%clk 0:00:11.9]} 43... Rgf2+ {[%clk
0:00:34.2]} 44. Kg5 {[%clk 0:00:11]} 44... Rg2+ {[%clk 0:00:33.4]} 45. Kf4
{[%clk 0:00:10.4]} 45... Rgf2+ {[%clk 0:00:33.6]} 46. Kg3 {[%clk 0:00:10.9]}
46... Rg2+ {[%clk 0:00:34]} 47. Kf3 {[%clk 0:00:11.5]} 47... Rgf2+ {[%clk
0:00:34.4]} 48. Kg3 {[%clk 0:00:12.1]} 1/2-1/2

[Event "Early-Titled-Tuesday-Blitz-September-05-2023"]
[Site "Chess.com"]
[Date "2023.09.05"]
[Round "1"]
[White "Chessbard1972"]
[Black "Aanna12"]
[Result "1-0"]
[WhiteElo "2559"]
[BlackElo "2021"]
[TimeControl "180+1"]
[EndTime "8:07:20 PDT"]
[Termination "Chessbard1972 won on time"]

1. d4 {[%clk 0:03:00.4]} 1... Nf6 {[%clk 0:02:58.9]} 2. c4 {[%clk 0:02:59.7]}
2... c5 {[%clk 0:02:58.6]} 3. d5 {[%clk 0:02:59.3]} 3... b5 {[%clk 0:02:58.8]}
4. cxb5 {[%clk 0:02:59.6]} 4... a6 {[%clk 0:02:59.1]} 5. b6 {[%clk 0:03:00.1]}
5... Qxb6 {[%clk 0:02:58.2]} 6. Nc3 {[%clk 0:02:59.5]} 6... g6 {[%clk
0:02:52.9]} 7. Nf3 {[%clk 0:02:59.8]} 7... d6 {[%clk 0:02:52.5]} 8. Nd2 {[%clk
0:03:00.7]} 8... Bg7 {[%clk 0:02:51.5]} 9. Nc4 {[%clk 0:03:01.6]} 9... Qd8
{[%clk 0:02:51]} 10. e4 {[%clk 0:02:59.8]} 10... O-O {[%clk 0:02:50.7]} 11. Be2
{[%clk 0:02:59.3]} 11... Nbd7 {[%clk 0:02:50.2]} 12. a4 {[%clk 0:02:58.8]} 12...
Rb8 {[%clk 0:02:46.4]} 13. a5 {[%clk 0:02:57.1]} 13... Ne8 {[%clk 0:02:45.2]}
14. O-O {[%clk 0:02:48.5]} 14... Nc7 {[%clk 0:02:45]} 15. Na4 {[%clk 0:02:46.3]}
15... Nb5 {[%clk 0:02:37.2]} 16. Nab6 {[%clk 0:02:45.8]} 16... Nxb6 {[%clk
0:02:35]} 17. Nxb6 {[%clk 0:02:45.2]} 17... Nd4 {[%clk 0:02:29.9]} 18. Bc4
{[%clk 0:02:42]} 18... e6 {[%clk 0:02:06.2]} 19. Ra3 {[%clk 0:02:37]} 19... exd5
{[%clk 0:02:04.1]} 20. Bxd5 {[%clk 0:02:35.3]} 20... Bd7 {[%clk 0:01:58.7]} 21.
Re1 {[%clk 0:02:25.4]} 21... Bb5 {[%clk 0:01:55.4]} 22. h3 {[%clk 0:02:23.5]}
22... Re8 {[%clk 0:01:49.8]} 23. Bf4 {[%clk 0:02:17.3]} 23... Be5 {[%clk
0:01:48.4]} 24. Bxe5 {[%clk 0:02:16.5]} 24... Rxe5 {[%clk 0:01:45.4]} 25. f4
{[%clk 0:02:13.9]} 25... Re8 {[%clk 0:01:45]} 26. Rae3 {[%clk 0:02:10.6]} 26...
Qf6 {[%clk 0:01:44.4]} 27. Qg4 {[%clk 0:02:06.9]} 27... h5 {[%clk 0:01:43.3]}
28. Qg3 {[%clk 0:02:03.9]} 28... Nc2 {[%clk 0:01:33.8]} 29. e5 {[%clk
0:02:03.7]} 29... Qg7 {[%clk 0:00:50.6]} 30. e6 {[%clk 0:01:56.7]} 30... f5
{[%clk 0:00:50.7]} 31. e7+ {[%clk 0:01:54.3]} 31... Kh7 {[%clk 0:00:50.8]} 32.
Kh2 {[%clk 0:01:45.1]} 32... Nxe3 {[%clk 0:00:47.4]} 33. Qxe3 {[%clk 0:01:43.6]}
33... Qd4 {[%clk 0:00:42.9]} 34. Qe6 {[%clk 0:01:37.2]} 34... Qxf4+ {[%clk
0:00:42.1]} 35. Kh1 {[%clk 0:01:36.6]} 35... Qf2 {[%clk 0:00:36.6]} 36. Qf7+
{[%clk 0:01:33.8]} 36... Kh6 {[%clk 0:00:35.7]} 37. Rd1 {[%clk 0:01:28]} 37...
Qe2 {[%clk 0:00:34.1]} 38. Bf3 {[%clk 0:01:25.3]} 38... Qxe7 {[%clk 0:00:33.4]}
39. Qb3 {[%clk 0:01:23.8]} 39... Qe3 {[%clk 0:00:30.2]} 40. Qc2 {[%clk
0:01:19.5]} 40... Re5 {[%clk 0:00:25.2]} 41. Rxd6 {[%clk 0:01:16.1]} 41... Qe1+
{[%clk 0:00:24.1]} 42. Kh2 {[%clk 0:01:16.1]} 42... h4 {[%clk 0:00:22.1]} 43.
Qd2+ {[%clk 0:01:12.3]} 43... Qxd2 {[%clk 0:00:21.5]} 44. Rxd2 {[%clk
0:01:12.5]} 44... Rbe8 {[%clk 0:00:16.1]} 45. Nd5 {[%clk 0:01:08.2]} 45... Re1
{[%clk 0:00:14.5]} 46. Nf4 {[%clk 0:01:06.8]} 46... Rb1 {[%clk 0:00:12.1]} 47.
Rd6 {[%clk 0:01:02.8]} 47... Rg8 {[%clk 0:00:10.2]} 48. Bd5 {[%clk 0:00:58.1]}
48... Rg7 {[%clk 0:00:07.7]} 49. Ne6 {[%clk 0:00:55.7]} 49... Re7 {[%clk
0:00:06.8]} 50. Nf8 {[%clk 0:00:54.4]} 50... Rg7 {[%clk 0:00:04.3]} 51. Ne6
{[%clk 0:00:52.5]} 51... Re7 {[%clk 0:00:04.4]} 52. b3 {[%clk 0:00:51.8]} 1-0

[Event "Early-Titled-Tuesday-Blitz-September-05-2023"]
[Site "Chess.com"]
[Date "2023.09.05"]
[Round "1"]
[White "Andrej2004"]
[Black "Bobbybunny"]
[Result "1-0"]
[WhiteElo "2574"]
[BlackElo "2148"]
[TimeControl "180+1"]
[EndTime "8:07:27 PDT"]
[Termination "Andrej2004 won by resignation"]

1. Nf3 {[%clk 0:03:00.9]} 1... c5 {[%clk 0:02:57.8]} 2. c4 {[%clk 0:03:00.4]}
2... Nc6 {[%clk 0:02:57.2]} 3. b3 {[%clk 0:03:00.7]} 3... Nf6 {[%clk 0:02:49.1]}
4. Bb2 {[%clk 0:03:00.4]} 4... g6 {[%clk 0:02:48.4]} 5. g3 {[%clk 0:02:55.8]}
5... Bg7 {[%clk 0:02:48]} 6. Bg2 {[%clk 0:02:56.2]} 6... O-O {[%clk 0:02:47.4]}
7. O-O {[%clk 0:02:56.5]} 7... d6 {[%clk 0:02:47.4]} 8. Nc3 {[%clk 0:02:56.2]}
8... e5 {[%clk 0:02:47.1]} 9. d3 {[%clk 0:02:55.6]} 9... h6 {[%clk 0:02:45.8]}
10. Nd2 {[%clk 0:02:50.7]} 10... Be6 {[%clk 0:02:42.4]} 11. a3 {[%clk
0:02:50.7]} 11... Qd7 {[%clk 0:02:40.5]} 12. Re1 {[%clk 0:02:48.4]} 12... Bh3
{[%clk 0:02:39.4]} 13. Bh1 {[%clk 0:02:48.3]} 13... Rad8 {[%clk 0:02:34.6]} 14.
b4 {[%clk 0:02:40.8]} 14... b6 {[%clk 0:02:30.6]} 15. b5 {[%clk 0:02:33.1]}
15... Nd4 {[%clk 0:02:15.1]} 16. a4 {[%clk 0:02:27.9]} 16... h5 {[%clk
0:02:06.5]} 17. e3 {[%clk 0:02:27.1]} 17... Nf5 {[%clk 0:01:55.9]} 18. a5 {[%clk
0:02:26.6]} 18... Nh6 {[%clk 0:01:49.1]} 19. axb6 {[%clk 0:02:26]} 19... axb6
{[%clk 0:01:48.5]} 20. Ra6 {[%clk 0:02:24.9]} 20... Qc7 {[%clk 0:01:34]} 21.
Nde4 {[%clk 0:02:19.7]} 21... Bg4 {[%clk 0:01:24.5]} 22. Nxf6+ {[%clk
0:02:05.7]} 22... Bxf6 {[%clk 0:01:22.9]} 23. Qa4 {[%clk 0:01:38.6]} 23... Be6
{[%clk 0:01:15.6]} 24. Ra7 {[%clk 0:01:38.5]} 24... Qc8 {[%clk 0:01:11]} 25. Qa6
{[%clk 0:01:30.8]} 25... h4 {[%clk 0:00:48.8]} 26. Qxb6 {[%clk 0:01:02.8]} 26...
hxg3 {[%clk 0:00:45.2]} 27. Rc7 {[%clk 0:00:53]} 27... Qb8 {[%clk 0:00:40.6]}
28. Qxb8 {[%clk 0:00:46.3]} 28... gxf2+ {[%clk 0:00:36.3]} 29. Kxf2 {[%clk
0:00:45.8]} 29... Rxb8 {[%clk 0:00:36.7]} 30. Ne4 {[%clk 0:00:36.3]} 30... Ng4+
{[%clk 0:00:34.4]} 31. Kg3 {[%clk 0:00:35.5]} 31... Bd8 {[%clk 0:00:32]} 32. Ra7
{[%clk 0:00:34.8]} 32... f5 {[%clk 0:00:27.4]} 33. Nxd6 {[%clk 0:00:34.9]} 33...
f4+ {[%clk 0:00:21.1]} 34. exf4 {[%clk 0:00:35.1]} 34... exf4+ {[%clk
0:00:20.8]} 35. Kf3 {[%clk 0:00:35.7]} 35... Bf6 {[%clk 0:00:19.8]} 36. Rxe6
{[%clk 0:00:32.1]} 36... Bxb2 {[%clk 0:00:19.1]} 37. Kxg4 {[%clk 0:00:32.2]}
37... Rf6 {[%clk 0:00:15]} 38. Bd5 {[%clk 0:00:27.8]} 38... Kh8 {[%clk
0:00:13.3]} 39. Rxf6 {[%clk 0:00:27.1]} 39... Bxf6 {[%clk 0:00:13.2]} 40. Kxf4
{[%clk 0:00:26.6]} 40... Rf8 {[%clk 0:00:11.3]} 41. Nf7+ {[%clk 0:00:26.6]}
41... Kg7 {[%clk 0:00:11.4]} 42. Kg4 {[%clk 0:00:24.2]} 42... Bd4 {[%clk
0:00:09.3]} 43. Ne5+ {[%clk 0:00:23.3]} 43... Kf6 {[%clk 0:00:08.3]} 44. Nd7+
{[%clk 0:00:23.3]} 44... Ke7 {[%clk 0:00:07.2]} 45. Nxf8+ {[%clk 0:00:24.2]}
45... Kxf8 {[%clk 0:00:07.4]} 46. Rf7+ {[%clk 0:00:25.1]} 46... Ke8 {[%clk
0:00:07.3]} 47. b6 {[%clk 0:00:26]} 1-0

[Event "Early-Titled-Tuesday-Blitz-September-05-2023"]
[Site "Chess.com"]
[Date "2023.09.05"]
[Round "1"]
[White "Virgo15"]
[Black "IPAchess"]
[Result "0-1"]
[WhiteElo "2686"]
[BlackElo "2416"]
[TimeControl "180+1"]
[EndTime "8:07:32 PDT"]
[Termination "IPAchess won by resignation"]

1. d4 {[%clk 0:03:00.9]} 1... d5 {[%clk 0:02:50.4]} 2. Bf4 {[%clk 0:03:00.5]}
2... Nf6 {[%clk 0:02:50.2]} 3. e3 {[%clk 0:03:00.6]} 3... e6 {[%clk 0:02:50.8]}
4. Nf3 {[%clk 0:03:00.1]} 4... Bd6 {[%clk 0:02:51.5]} 5. Bg3 {[%clk 0:03:00.1]}
5... O-O {[%clk 0:02:50.6]} 6. Nbd2 {[%clk 0:02:59.9]} 6... c5 {[%clk
0:02:51.3]} 7. c3 {[%clk 0:03:00.2]} 7... Qc7 {[%clk 0:02:52]} 8. dxc5 {[%clk
0:02:59.5]} 8... Bxg3 {[%clk 0:02:48.6]} 9. hxg3 {[%clk 0:02:59.4]} 9... Qxc5
{[%clk 0:02:49.3]} 10. Bd3 {[%clk 0:02:59.1]} 10... Nc6 {[%clk 0:02:47.6]} 11.
Nd4 {[%clk 0:02:53.2]} 11... e5 {[%clk 0:02:44.7]} 12. Bxh7+ {[%clk 0:02:50.2]}
12... Kh8 {[%clk 0:01:54.9]} 13. Bc2+ {[%clk 0:02:46.7]} 13... Kg8 {[%clk
0:01:52.4]} 14. N2b3 {[%clk 0:02:31.3]} 14... Qb6 {[%clk 0:01:51]} 15. Bh7+
{[%clk 0:02:27.8]} 15... Kh8 {[%clk 0:01:50.4]} 16. Bf5+ {[%clk 0:02:19.3]}
16... Kg8 {[%clk 0:01:49.8]} 17. Nxc6 {[%clk 0:02:18.2]} 17... bxc6 {[%clk
0:01:47.7]} 18. g4 {[%clk 0:02:01.7]} 18... Bxf5 {[%clk 0:01:36.3]} 19. gxf5
{[%clk 0:02:01.2]} 19... a5 {[%clk 0:01:37]} 20. Qf3 {[%clk 0:01:42.3]} 20...
Rfd8 {[%clk 0:01:12.1]} 21. g4 {[%clk 0:01:36.5]} 21... a4 {[%clk 0:01:11.5]}
22. Nd2 {[%clk 0:01:36.2]} 22... Qxb2 {[%clk 0:01:10.5]} 23. Rb1 {[%clk
0:01:36.3]} 23... Qxc3 {[%clk 0:01:10.1]} 24. Qh3 {[%clk 0:00:47.3]} 24... Kf8
{[%clk 0:01:05.1]} 25. g5 {[%clk 0:00:41.4]} 25... Ne4 {[%clk 0:01:04.6]} 26.
Rd1 {[%clk 0:00:41.1]} 26... d4 {[%clk 0:00:54.4]} 27. f6 {[%clk 0:00:38.4]}
27... gxf6 {[%clk 0:00:49.5]} 28. gxf6 {[%clk 0:00:38.7]} 28... Nxf6 {[%clk
0:00:44.9]} 29. Qf5 {[%clk 0:00:27.6]} 29... dxe3 {[%clk 0:00:32.5]} 30. Qxf6
{[%clk 0:00:20.3]} 30... exd2+ {[%clk 0:00:28]} 31. Kf1 {[%clk 0:00:20.6]} 31...
Qc4+ {[%clk 0:00:24.4]} 32. Kg2 {[%clk 0:00:14.4]} 32... Qg4+ {[%clk 0:00:24.6]}
33. Kh2 {[%clk 0:00:15]} 33... Qf4+ {[%clk 0:00:16]} 34. Qxf4 {[%clk 0:00:13.8]}
34... exf4 {[%clk 0:00:16.9]} 35. Kg2 {[%clk 0:00:14.1]} 35... c5 {[%clk
0:00:14.3]} 36. Rh4 {[%clk 0:00:12.6]} 36... c4 {[%clk 0:00:14]} 37. Rxf4 {[%clk
0:00:12.6]} 37... c3 {[%clk 0:00:14.7]} 38. Rc4 {[%clk 0:00:12.8]} 38... Rac8
{[%clk 0:00:15.1]} 0-1